bitfinex/quotes_ETHUSD_20241104
["timestamp","ask_amount","ask_price","bid_price","bid_amount"]
[1730734937420,0.05889778,2436.9,2436.7,4.1284215]
[1730734937616,4.10313,2437.2,2436.7,4.1284215]
[1730734937845,5.002374,2437.2,2436.7,4.1284215]
[1730734938156,0.05898639,2437.1,2436.7,4.1284215]
[1730734938346,4.16222639,2437.1,2436.7,0.0246315]
[1730734938546,4.16228639,2437.1,2436.7,0.0246315]
[1730734939208,4.10342,2437.0,2436.7,0.0246315]
[1730734939414,0.05884789,2436.9,2436.7,0.0246315]
[1730734939618,4.10324,2437.1,2436.7,0.0246315]
[1730734939619,8.20656,2437.1,2436.7,0.0246315]
[1730734939819,4.16231702,2437.0,2436.7,0.0246315]
[1730734940058,4.94731702,2437.0,2436.7,0.0246315]
[1730734941151,4.10357,2436.9,2436.7,0.0246315]
[1730734941330,4.94731702,2437.0,2436.7,0.0246315]
[1730734941531,9.05082702,2437.0,2436.7,0.0246315]
[1730734941726,4.10364,2436.9,2436.7,0.0246315]
[1730734941931,4.16261065,2436.8,2436.7,0.0246315]
[1730734942433,4.16261065,2436.8,2435.8,0.0612447]
[1730734942434,4.89485,2435.9,2435.8,0.0612447]
[1730734942629,8.44485,2435.9,2435.8,0.0612447]
[1730734942840,13.50368106,2435.9,2435.8,0.0612447]
[1730734943075,15.66030579,2435.9,2435.8,0.0612447]
[1730734944164,7.11030579,2435.9,2435.8,0.0612447]
[1730734944346,4.95368106,2435.9,2435.8,0.0612447]
[1730734945625,0.84843106,2435.9,2435.8,0.0612447]
[1730734945833,4.95368106,2435.9,2435.8,0.0612447]
[1730734952400,0.05883106,2435.9,2435.8,0.0612447]
[1730734952568,4.16408106,2435.9,2435.8,0.0612447]
[1730734952974,5.07119917,2435.9,2435.8,0.0612447]
[1730734956064,9.45749917,2435.9,2435.8,0.0612447]
[1730734956301,9.46749917,2435.9,2435.8,4.7e-06]
[1730734957003,14.46749917,2435.9,2435.8,4.7e-06]
[1730734958279,9.44749917,2435.9,2435.8,4.7e-06]
[1730734958764,9.45749917,2435.9,2435.8,4.7e-06]
[1730734960381,9.44749917,2435.9,2435.8,4.7e-06]
[1730734960903,8.89749917,2435.9,2435.8,4.7e-06]
[1730734961704,5.07119917,2435.9,2435.8,4.7e-06]
[1730734962001,4.16408106,2435.9,2435.8,4.7e-06]
[1730734963606,0.05883106,2435.9,2435.8,4.7e-06]
[1730734963975,4.16408106,2435.9,2435.8,4.7e-06]
[1730734964583,4.93348106,2435.9,2435.8,4.7e-06]
[1730734965068,5.48348106,2435.9,2435.8,4.7e-06]
[1730734965274,7.40904517,2435.9,2435.8,4.7e-06]
[1730734966801,10.40904517,2435.9,2435.8,4.7e-06]
[1730734969498,14.36197152,2435.9,2435.8,4.7e-06]
[1730734970676,4.65728,2434.7,2434.6,0.0612447]
[1730734970915,18.29104275,2434.7,2434.6,0.0612447]
[1730734971176,11.3381164,2434.7,2434.6,0.0612447]
[1730734971333,5.5875164,2434.7,2434.6,0.0612447]
[1730734972056,4.1610744,2434.7,2434.6,0.0612447]
[1730734972713,0.0537944,2434.7,2434.6,0.0612447]
[1730734972915,0.0537944,2434.7,2434.6,4.9509947]
[1730734973151,4.1069,2435.0,2434.6,0.8435447]
[1730734973339,0.05172944,2434.9,2434.6,0.8435447]
[1730734975172,4.15869944,2434.9,2434.6,0.8435447]
[1730734975462,4.10728,2434.7,2434.6,0.0612447]
[1730734975824,4.15714855,2434.7,2434.6,0.0612447]
[1730734977143,0.04986855,2434.7,2434.6,0.0612447]
[1730734977328,4.10711,2434.8,2434.6,0.0612447]
[1730734977651,0.04986976,2434.7,2434.6,0.0612447]
[1730734978668,0.04979266,2434.7,2434.6,0.0612447]
[1730734979037,4.10728,2434.7,2434.6,0.0612447]
[1730734979237,4.5678103,2434.7,2434.6,0.0612447]
[1730734980457,4.1570823,2434.7,2434.6,0.0612447]
[1730734981341,0.0498023,2434.7,2434.6,0.0612447]
[1730734981528,4.10688,2435.0,2434.6,0.0612447]
[1730734981529,4.107,2434.9,2434.6,0.0612447]
[1730734981869,0.05000041,2434.8,2434.6,0.0612447]
[1730734983672,0.05000041,2434.8,2434.7,4.87038]
[1730734983839,4.10671,2435.1,2434.7,0.7631]
[1730734984042,0.04992342,2434.8,2434.7,0.7631]
[1730734984343,9.10597,2435.5,2434.7,0.7631]
[1730734984344,4.10559,2435.7,2435.1,4.10644]
[1730734984541,4.10587,2435.6,2435.2,0.7852]
[1730734984785,4.10627,2435.3,2435.2,0.7852]
[1730734985556,4.10659,2435.2,2434.7,4.92917]
[1730734985814,4.10658,2435.2,2434.7,4.92917]
[1730734986086,4.10662,2435.1,2434.7,4.92917]
[1730734986246,4.10647,2435.2,2434.8,4.10709]
[1730734986450,4.10629,2435.3,2434.9,4.10693]
[1730734987078,4.10653,2435.2,2434.8,4.10711]
[1730734987448,5.294267,2435.6,2434.8,4.10711]
[1730734987449,4.10634,2435.3,2434.8,4.10711]
[1730734987688,1.188487,2435.6,2435.1,0.7583]
[1730734987689,4.10601,2435.5,2435.1,0.7583]
[1730734987983,4.10623,2435.4,2435.1,0.7583]
[1730734988355,4.1064,2435.3,2435.1,0.7583]
[1730734988559,4.10652,2435.2,2434.8,0.7842]
[1730734988744,4.1066,2435.1,2434.8,0.7842]
[1730734989086,0.821292,2435.2,2434.8,0.7842]
[1730734989268,4.1065,2435.2,2434.8,0.7842]
[1730734989451,4.10635,2435.3,2434.8,0.7842]
[1730734989678,4.1065,2435.2,2434.8,4.89123]
[1730734990074,4.1065,2435.2,2434.8,0.7842]
[1730734990287,4.1065,2435.2,2434.8,4.89126]
[1730734990484,4.10627,2435.3,2434.9,4.10685]
[1730734990695,4.10654,2435.2,2434.8,0.7842]
[1730734990908,4.10662,2435.1,2434.8,0.7842]
[1730734991307,4.10654,2435.2,2434.8,0.7842]
[1730734991308,4.10654,2435.2,2434.8,4.89131]
[1730734991512,4.10654,2435.2,2434.8,4.89121]
[1730734992913,4.10654,2435.2,2434.8,4.8912]
[1730734993274,4.10654,2435.2,2434.8,8.99819]
[1730734993580,4.10654,2435.2,2434.8,4.89119]
[1730734993776,4.10654,2435.2,2434.8,8.99822]
[1730734994000,4.10621,2435.4,2434.9,4.10686]
[1730734994525,4.10596,2435.5,2435.1,4.10651]
[1730734994670,4.516367,2435.6,2435.1,4.10651]
[1730734994984,4.516367,2435.6,2435.2,4.10641]
[1730734995775,4.10578,2435.6,2435.3,0.8111]
[1730734996298,8.21165,2435.6,2435.3,0.8111]
[1730734996495,4.10578,2435.6,2435.3,0.8111]
[1730734996711,7.71782833,2435.9,2435.4,4.10606]
[1730734996920,7.71782833,2435.9,2435.4,4.1061]
[1730734996921,0.04895102,2435.5,2435.4,4.1061]
[1730734997212,0.04898637,2435.5,2435.4,4.1061]
[1730734997370,8.21067,2435.9,2435.4,4.1061]
[1730734997580,4.15457492,2435.8,2435.3,4.91722]
[1730734997776,4.15457492,2435.8,2435.2,0.7874]
[1730734997777,0.04910492,2435.8,2435.2,0.7874]
[1730734997976,0.04910492,2435.8,2435.6,4.89308]
[1730734998184,4.1051,2436.0,2435.6,4.89308]
[1730734998392,0.04881216,2435.9,2435.6,4.89308]
[1730734998611,0.04881216,2435.9,2435.6,0.7874]
[1730734998816,4.10516,2436.0,2435.6,4.89316]
[1730734998992,0.04877265,2435.8,2435.6,4.89316]
[1730734999193,4.10516,2436.0,2435.6,4.89316]
[1730734999926,0.04881216,2435.9,2435.6,4.89316]
[1730735000482,2.92579885,2436.4,2436.1,4.10484]
[1730735000483,1.68700422,2436.4,2436.1,4.10484]
[1730735000677,4.87355,2436.7,2436.3,4.10451]
[1730735000678,1.68700422,2436.6,2436.3,4.10451]
[1730735001026,8.20798,2436.7,2436.3,4.10447]
[1730735001229,4.10395,2436.7,2436.3,4.10447]
[1730735001513,4.10383,2436.8,2436.4,4.1044]
[1730735001824,0.7696,2437.0,2436.6,4.91574]
[1730735001825,4.10345,2437.0,2436.6,4.91574]
[1730735002129,1.68700422,2437.4,2437.1,4.91479]
[1730735002450,4.10241,2437.6,2437.1,4.91479]
[1730735002929,4.10206,2437.8,2437.3,4.10276]
[1730735003100,4.10222,2437.8,2437.2,4.10306]
[1730735003425,4.76362635,2438.2,2437.4,0.7535]
[1730735003738,4.1023,2437.7,2437.4,0.7535]
[1730735004599,4.1022,2437.8,2437.4,0.7535]
[1730735005121,8.20404,2437.9,2437.4,4.85614]
[1730735005292,4.102,2437.9,2437.4,4.85614]
[1730735005495,4.10179,2438.0,2437.5,4.10247]
[1730735006132,3.0,2438.1,2437.6,4.10227]
[1730735006297,4.10114,2438.4,2437.7,4.10222]
[1730735006495,4.10114,2438.4,2437.9,4.1018]
[1730735006694,4.88389,2438.5,2438.0,4.86369]
[1730735007039,4.72992635,2438.8,2438.0,5.760239]
[1730735007189,4.10129,2438.3,2438.0,0.762]
[1730735007534,4.10187,2438.0,2437.6,0.7888]
[1730735007836,4.10154,2438.2,2437.6,0.7888]
[1730735008032,4.10155,2438.1,2437.6,0.7888]
[1730735008404,4.10174,2438.0,2437.6,0.7888]
[1730735010651,3.0,2438.1,2437.6,4.89109]
[1730735010857,4.10114,2438.4,2437.6,1.277909]
[1730735011023,3.0,2438.3,2437.9,0.8196]
[1730735011224,3.0,2438.3,2437.9,4.92144]
[1730735011827,0.04273687,2438.2,2438.1,4.10155]
[1730735012030,0.04273687,2438.2,2438.1,4.89355]
[1730735012252,4.10046,2438.8,2438.3,4.10115]
[1730735012473,8.20031,2439.0,2438.4,4.10102]
[1730735012757,8.20031,2439.0,2438.5,0.8032]
[1730735012758,0.04152551,2438.7,2438.5,0.8032]
[1730735012970,4.10021,2438.9,2438.5,0.8032]
[1730735013175,0.04148608,2438.6,2438.5,0.8032]
[1730735013477,0.04148608,2438.6,2438.5,4.90398]
[1730735013478,0.04149141,2438.6,2438.5,4.90398]
[1730735013775,0.8188,2439.3,2438.6,4.1007]
[1730735013979,4.09969,2439.3,2438.7,4.10046]
[1730735014176,4.9615506,2439.2,2438.7,4.10046]
[1730735014336,0.0419356,2439.2,2438.7,4.10046]
[1730735014675,4.09936,2439.4,2438.8,0.786]
[1730735014860,0.04047976,2439.1,2438.8,0.786]
[1730735015180,0.0612447,2439.5,2438.9,0.786]
[1730735015381,0.04044035,2439.0,2438.9,1.275627]
[1730735015688,0.04044035,2439.0,2438.9,5.375737]
[1730735015840,4.1604447,2439.5,2439.0,4.10001]
[1730735016037,4.1604847,2439.5,2439.1,4.88571]
[1730735016267,0.0612447,2439.5,2439.2,4.18164479]
[1730735016478,0.0612447,2439.5,2439.3,4.09941]
[1730735016785,0.0612447,2439.5,2439.4,4.96733787]
[1730735016952,0.0612447,2439.5,2439.4,4.97733787]
[1730735017141,4.09778,2440.4,2440.0,0.786]
[1730735017336,4.09798,2440.3,2440.0,0.786]
[1730735017567,4.0977,2440.4,2440.0,0.786]
[1730735017781,9.014999,2440.4,2440.0,0.786]
[1730735018079,3.0,2440.3,2440.0,0.786]
[1730735018288,4.09819,2440.1,2440.0,0.786]
[1730735018482,4.09819,2440.1,2439.6,4.86375]
[1730735018983,4.09837,2440.0,2439.6,0.7648]
[1730735019338,4.09837,2440.0,2439.6,4.86381]
[1730735019772,4.09816,2440.2,2439.6,4.86381]
[1730735019981,3.0,2440.4,2439.6,4.86381]
[1730735019982,4.09832,2440.1,2439.7,4.09884]
[1730735020135,3.0,2440.2,2439.8,4.09859]
[1730735020341,3.0,2440.2,2439.9,4.09851]
[1730735020644,4.09763,2440.5,2440.0,0.8004]
[1730735020645,7.0977,2440.4,2440.0,0.8004]
[1730735020845,3.0,2440.5,2440.1,4.09814]
[1730735021072,4.09732,2440.7,2440.1,4.09814]
[1730735021252,4.09752,2440.5,2440.1,4.09814]
[1730735021599,4.09752,2440.5,2440.0,4.89859]
[1730735022437,4.09773,2440.4,2440.0,0.8004]
[1730735023264,3.0,2440.4,2440.0,4.89873]
[1730735023464,7.09769,2440.4,2440.0,4.89873]
[1730735023843,4.16110665,2440.4,2440.0,0.8004]
[1730735024179,4.16110665,2440.4,2439.0,7.65768135]
[1730735024180,4.09911,2439.6,2439.4,0.7885]
[1730735024680,4.09836,2440.0,2439.0,0.7885]
[1730735024681,4.09946,2439.4,2439.0,0.7885]
[1730735024879,4.09946,2439.4,2439.0,4.88852]
[1730735025178,4.09914,2439.6,2439.0,4.88852]
[1730735025387,4.09921,2439.5,2439.0,4.88843]
[1730735025542,4.09951,2439.4,2439.0,0.7885]
[1730735025851,4.09917,2439.6,2439.0,0.7885]
[1730735026477,4.09939,2439.4,2439.0,4.88843]
[1730735026980,0.04079885,2439.3,2439.0,4.88843]
[1730735027385,0.04079885,2439.3,2439.0,0.7885]
[1730735028053,4.09917,2439.6,2439.0,0.7885]
[1730735028273,0.04072207,2439.2,2439.0,4.88841]
[1730735028584,4.09931,2439.5,2439.1,4.09986]
[1730735030067,4.09931,2439.5,2439.1,4.18184733]
[1730735030461,4.508967,2439.6,2439.1,8.28163733]
[1730735030776,4.09905,2439.6,2439.2,4.09969]
[1730735031193,7.09872,2439.8,2439.4,4.09929]
[1730735031478,7.09872,2439.8,2439.3,4.91373]
[1730735031479,4.09887,2439.7,2439.3,4.91373]
[1730735031678,7.09872,2439.8,2439.3,4.91361]
[1730735031879,7.09872,2439.8,2439.3,0.8142]
[1730735032046,4.09888,2439.7,2439.3,4.9137]
[1730735032387,5.21864,2439.7,2439.3,0.8142]
[1730735033048,4.09928,2439.5,2439.3,0.8142]
[1730735033248,4.09904,2439.6,2439.3,0.8142]
[1730735033878,4.09923,2439.5,2439.3,0.8142]
[1730735034682,4.09961,2439.3,2439.0,0.7606]
[1730735034896,8.19927,2439.3,2439.0,0.7606]
[1730735035056,4.09986,2439.2,2439.0,0.7606]
[1730735035246,4.09986,2439.2,2438.7,4.86102]
[1730735035247,4.09987,2439.1,2438.7,4.86102]
[1730735035845,3.0,2439.3,2438.9,4.10018]
[1730735036205,3.0,2439.3,2438.9,4.1002]
[1730735037366,3.0,2439.3,2438.7,0.7706]
[1730735037659,4.0991,2439.6,2439.0,4.09994]
[1730735037660,3.0,2439.4,2439.0,4.09994]
[1730735038174,7.09938,2439.4,2439.0,4.09994]
[1730735039375,7.09938,2439.4,2439.0,4.09994]
[1730735040071,11.19885,2439.4,2439.0,4.09994]
[1730735040270,4.09954,2439.3,2438.9,4.1002]
[1730735040670,4.0997,2439.2,2438.7,0.7606]
[1730735040872,4.09987,2439.1,2438.8,0.23035731]
[1730735041074,0.7511,2439.4,2438.7,4.86107]
[1730735041276,3.0,2439.4,2439.0,4.09996]
[1730735041489,0.7666,2440.0,2439.2,4.09956]
[1730735041685,4.09893,2439.7,2439.3,0.23052691]
[1730735041844,4.13537846,2439.9,2439.3,4.09945]
[1730735042051,4.09906,2439.6,2439.4,0.23049672]
[1730735042291,4.09906,2439.6,2439.1,4.92439]
[1730735042457,4.1359009,2439.5,2439.2,0.23066967]
[1730735042658,4.0996,2439.3,2439.1,0.8246]
[1730735043164,4.13627269,2439.2,2438.8,4.10024]
[1730735043495,4.13627269,2439.2,2438.9,1.03531283]
[1730735043649,4.09994,2439.1,2439.0,0.23081283]
[1730735043997,4.13627269,2439.2,2438.6,4.1006]
[1730735043998,4.10006,2439.0,2438.6,4.1006]
[1730735044151,4.10022,2438.9,2438.7,0.23082068]
[1730735044490,4.13667445,2438.9,2438.8,0.23082068]
[1730735044850,0.03645445,2438.9,2438.5,4.89687]
[1730735045047,0.03645445,2438.9,2438.6,4.3315438]
[1730735045283,0.03645445,2438.9,2438.7,0.2309038]
[1730735045284,4.10022,2438.9,2438.7,0.2309038]
[1730735045452,4.10007,2439.0,2438.8,0.2309038]
[1730735045651,4.10007,2439.0,2438.6,4.10066]
[1730735045951,4.10024,2438.9,2438.7,0.23089403]
[1730735046079,4.10024,2438.9,2438.5,4.89687]
[1730735046080,4.10024,2438.9,2438.8,0.23089403]
[1730735046284,4.10024,2438.9,2438.5,0.7961]
[1730735046458,4.10024,2438.9,2438.6,0.23084768]
[1730735046657,4.10024,2438.9,2438.5,0.7961]
[1730735046658,4.10024,2438.9,2438.7,0.23084768]
[1730735046898,4.10024,2438.9,2438.5,0.7961]
[1730735047066,4.10024,2438.9,2438.6,0.23086561]
[1730735047403,4.10042,2438.8,2438.7,0.23080077]
[1730735047558,4.10024,2438.9,2438.7,0.23080077]
[1730735047761,4.10024,2438.9,2438.5,4.89688]
[1730735047959,4.10024,2438.9,2438.6,0.23081023]
[1730735048157,3.0,2439.4,2438.7,0.23081023]
[1730735048413,3.0,2439.4,2438.8,0.23078322]
[1730735048414,3.0,2439.1,2438.8,0.23078322]
[1730735048557,9.01614,2439.5,2439.0,4.88504]
[1730735048763,3.0,2439.4,2439.1,4.09986]
[1730735049387,3.0,2439.4,2439.2,0.23076169]
[1730735049710,4.09897,2439.7,2439.1,4.09986]
[1730735049711,4.09906,2439.6,2439.1,4.09986]
[1730735049919,4.09906,2439.6,2439.2,0.23077208]
[1730735050124,4.09895,2439.7,2439.2,4.09961]
[1730735050304,4.09895,2439.7,2439.3,4.33032552]
[1730735050482,0.8011,2439.8,2439.3,4.09946]
[1730735050483,4.09881,2439.8,2439.3,4.09946]
[1730735050674,4.09869,2439.8,2439.3,4.09946]
[1730735050872,4.09887,2439.7,2439.3,4.09946]
[1730735051302,3.0,2439.6,2439.3,4.09946]
[1730735052111,3.0,2439.6,2439.2,4.09966]
[1730735052318,3.0,2439.6,2439.0,0.7851]
[1730735052524,4.09888,2439.7,2439.3,4.09951]
[1730735052682,4.09888,2439.7,2439.0,0.7851]
[1730735052683,3.0,2439.6,2439.4,0.23096649]
[1730735053013,3.0,2439.6,2439.2,8.1993]
[1730735053219,3.0,2439.6,2439.3,0.23096368]
[1730735053520,3.0,2439.6,2439.4,0.23096368]
[1730735053817,3.0,2439.6,2439.2,4.09961]
[1730735053977,3.0,2439.6,2439.3,0.23107451]
[1730735054174,3.0,2439.6,2439.2,4.09959]
[1730735054379,3.0,2439.6,2439.3,0.23110436]
[1730735054380,4.09921,2439.5,2439.3,0.23110436]
[1730735054694,4.09921,2439.5,2439.1,4.09986]
[1730735054893,4.09944,2439.4,2439.2,0.23112471]
[1730735055114,4.09953,2439.3,2439.0,0.7851]
[1730735055282,4.09944,2439.4,2439.1,0.23113789]
[1730735055617,4.09944,2439.4,2439.0,4.88506]
[1730735055789,4.09944,2439.4,2439.1,0.23113967]
[1730735055991,4.09944,2439.4,2439.0,4.88506]
[1730735056523,4.09944,2439.4,2439.1,0.23112707]
[1730735056820,4.09944,2439.4,2439.0,4.10001]
[1730735057021,4.09944,2439.4,2439.1,0.23112408]
[1730735057231,4.09944,2439.4,2439.0,4.10001]
[1730735057436,4.09944,2439.4,2439.1,0.23112836]
[1730735057608,4.09944,2439.4,2439.0,4.10001]
[1730735060129,4.09978,2439.2,2438.8,4.90274]
[1730735061491,4.09978,2439.2,2438.8,0.8024]
[1730735061492,4.09989,2439.1,2438.8,0.8024]
[1730735062036,4.09978,2439.2,2438.8,4.90272]
[1730735062429,4.09978,2439.2,2438.8,0.8024]
[1730735062633,8.19962,2439.2,2438.8,0.8024]
[1730735062833,4.09978,2439.2,2438.8,4.9027]
[1730735063195,4.09955,2439.3,2438.9,4.1002]
[1730735063531,4.09955,2439.3,2438.8,9.00297]
[1730735063700,4.09993,2439.1,2438.8,0.8024]
[1730735064133,4.1002,2438.9,2438.4,4.89661]
[1730735064302,4.1002,2438.9,2438.4,8.99759]
[1730735064625,4.10038,2438.8,2438.4,4.89661]
[1730735064842,4.1002,2438.9,2438.5,4.10087]
[1730735064843,4.10023,2438.9,2438.5,4.10087]
[1730735065715,8.20054,2438.9,2438.5,4.10087]
[1730735065902,4.10023,2438.9,2438.5,4.10087]
[1730735066099,4.10023,2438.9,2438.4,0.7957]
[1730735066444,4.10023,2438.9,2438.4,4.89668]
[1730735066614,5.06466778,2438.9,2438.4,0.7957]
[1730735066947,4.10094,2438.5,2438.2,0.7942]
[1730735067241,8.20157,2438.6,2438.2,0.7942]
[1730735067435,4.10105,2438.4,2438.0,0.7921]
[1730735067754,4.10121,2438.3,2438.0,0.7921]
[1730735068302,4.10121,2438.3,2437.8,4.10201]
[1730735068544,4.10141,2438.2,2437.8,4.88451]
[1730735068907,4.10121,2438.3,2437.8,4.88451]
[1730735069120,4.89367,2438.5,2437.9,4.10188]
[1730735069345,4.10097,2438.5,2438.2,0.7825]
[1730735070409,8.20194,2438.5,2438.2,0.7825]
[1730735070604,4.10097,2438.5,2438.2,0.7825]
[1730735071615,4.10066,2438.7,2438.2,0.86452342]
[1730735072128,4.10038,2438.8,2438.3,4.10108]
[1730735072330,4.91603,2438.9,2438.5,4.10086]
[1730735072647,4.10023,2438.9,2438.6,0.7884]
[1730735073347,6.59524796,2439.2,2438.6,1.687429]
[1730735073500,8.19954,2439.2,2438.7,4.10039]
[1730735073913,4.09972,2439.2,2438.7,4.10039]
[1730735074115,4.09972,2439.2,2438.8,4.10036]
[1730735074517,8.19958,2439.2,2438.7,4.10054]
[1730735075303,4.09994,2439.1,2438.6,4.88911]
[1730735075503,4.09994,2439.1,2438.7,4.10043]
[1730735075940,4.10006,2439.0,2438.6,0.7884]
[1730735076202,0.410006,2439.0,2438.6,0.7884]
[1730735076404,4.10013,2439.0,2438.4,4.1830267]
[1730735076742,4.67162796,2439.1,2438.3,0.7898]
[1730735076743,7.09993,2439.1,2438.3,0.7898]
[1730735076914,4.10061,2438.7,2438.3,0.7898]
[1730735077115,4.10078,2438.6,2438.3,0.7898]
[1730735077429,4.10095,2438.5,2438.1,4.10147]
[1730735077606,8.20192,2438.5,2438.1,0.821]
[1730735077812,4.10095,2438.5,2438.1,0.821]
[1730735078358,4.10095,2438.5,2438.1,4.92247]
[1730735078643,4.10068,2438.7,2438.1,4.92247]
[1730735078644,4.10081,2438.6,2438.1,5.00455035]
[1730735078809,4.1009,2438.5,2438.1,4.92253]
[1730735079145,4.1009,2438.5,2438.1,5.00455035]
[1730735079444,4.1009,2438.5,2438.1,4.92253]
[1730735080308,4.1009,2438.5,2438.1,0.821]
[1730735080503,4.10113,2438.4,2438.0,4.10164]
[1730735081019,4.10113,2438.4,2437.8,5.380871]
[1730735081328,4.10133,2438.3,2437.8,8.9944]
[1730735081530,4.10146,2438.2,2437.8,4.89242]
[1730735082117,4.10146,2438.2,2437.8,0.7905]
[1730735082842,0.7755,2438.3,2437.9,4.10182]
[1730735083048,4.87676,2438.3,2437.9,4.10182]
[1730735083846,3.0,2438.4,2438.0,4.10162]
[1730735084342,3.0,2438.4,2437.9,0.489232]
[1730735084559,6.55874796,2438.9,2438.5,4.1008]
[1730735084706,1.67162796,2439.0,2438.6,4.10061]
[1730735084906,6.22101628,2439.1,2438.0,0.01]
[1730735084907,4.10021,2438.9,2438.3,0.8044]
[1730735085153,4.10049,2438.8,2438.3,4.90559]
[1730735085303,4.10049,2438.8,2438.3,5.4191603]
[1730735085509,4.10057,2438.7,2438.3,5.4191603]
[1730735085743,4.10025,2438.9,2438.4,4.10095]
[1730735085953,3.0,2438.9,2438.5,4.10079]
[1730735086142,4.10028,2438.9,2438.5,4.10079]
[1730735086808,8.20059,2438.9,2438.5,4.10079]
[1730735087006,4.10028,2438.9,2438.5,4.10079]
[1730735087611,7.10009,2439.0,2438.4,4.10095]
[1730735087812,4.1002,2438.9,2438.4,4.10095]
[1730735088413,4.1002,2438.9,2438.5,4.10087]
[1730735089157,4.10055,2438.7,2438.3,5.4191003]
[1730735089359,0.7897,2438.8,2438.0,0.8056]
[1730735089513,0.7897,2438.8,2438.0,4.90724]
[1730735089514,4.10099,2438.5,2438.0,4.90724]
[1730735089835,4.10099,2438.5,2438.1,4.10153]
[1730735090035,4.10086,2438.6,2438.2,4.10128]
[1730735090427,8.20166,2438.6,2438.2,4.10128]
[1730735090640,4.1008,2438.6,2438.2,4.10128]
[1730735090839,8.2016,2438.6,2438.2,4.10128]
[1730735091060,4.10112,2438.4,2438.0,0.8056]
[1730735091263,4.10124,2438.3,2438.0,0.8056]
[1730735091468,4.10124,2438.3,2437.8,4.88945]
[1730735091770,4.10124,2438.3,2437.9,4.10185]
[1730735092530,8.20256,2438.3,2437.9,4.10185]
[1730735092731,4.10132,2438.3,2437.8,0.7875]
[1730735093044,4.10132,2438.3,2437.9,4.10187]
[1730735093562,4.10068,2438.7,2438.2,4.10131]
[1730735093766,0.7897,2438.8,2438.2,4.90825]
[1730735093767,7.10081,2438.6,2438.2,4.90825]
[1730735094134,3.0,2438.4,2438.2,0.8069]
[1730735094668,4.10081,2438.6,2438.2,1.297737]
[1730735094839,8.2016,2438.6,2438.2,0.8069]
[1730735095228,4.10094,2438.5,2438.0,4.10169]
[1730735095848,4.10106,2438.4,2438.0,4.10169]
[1730735096050,3.7897,2438.8,2437.9,0.7662]
[1730735096251,4.10109,2438.4,2437.9,4.86793]
[1730735096456,4.10109,2438.4,2437.9,9.5054102]
[1730735096860,4.10109,2438.4,2438.0,4.10166]
[1730735097659,4.1013,2438.3,2437.9,0.7662]
[1730735098065,4.1013,2438.3,2437.9,4.86808]
[1730735099141,4.10109,2438.4,2437.9,8.96983]
[1730735099142,4.10105,2438.4,2437.9,8.96983]
[1730735099343,4.10091,2438.5,2438.0,4.10171]
[1730735099544,3.0,2438.5,2438.0,4.10172]
[1730735099768,7.10088,2438.5,2438.0,4.10172]
[1730735099974,4.10107,2438.4,2438.0,4.10172]
[1730735100159,7.1009,2438.5,2438.1,4.10151]
[1730735100346,7.10074,2438.6,2438.1,4.10155]
[1730735100542,7.10074,2438.6,2438.2,4.10125]
[1730735100748,7.10049,2438.8,2438.4,0.7937]
[1730735100974,3.0,2438.6,2438.4,0.7937]
[1730735101982,7.10072,2438.6,2438.4,0.7937]
[1730735102184,4.1012,2438.4,2438.0,0.7788]
[1730735102349,4.10135,2438.3,2438.0,0.7788]
[1730735102551,4.10135,2438.3,2437.7,4.10213]
[1730735102552,4.10148,2438.2,2437.7,4.88093]
[1730735103091,4.10148,2438.2,2437.7,8.98307]
[1730735103254,4.10148,2438.2,2437.7,4.88093]
[1730735103596,4.10147,2438.2,2437.7,8.98309]
[1730735103746,4.10147,2438.2,2437.7,4.88093]
[1730735104084,4.10132,2438.3,2437.8,4.10205]
[1730735104291,8.2027,2438.3,2437.8,4.10205]
[1730735104503,4.10132,2438.3,2437.8,4.10205]
[1730735104664,4.10097,2438.5,2438.0,4.10155]
[1730735104846,4.10097,2438.5,2438.1,4.10153]
[1730735105049,8.20196,2438.5,2438.1,4.10153]
[1730735105245,8.20198,2438.5,2438.1,4.10153]
[1730735105445,8.20198,2438.5,2438.0,4.10169]
[1730735105680,8.20196,2438.5,2438.0,4.10169]
[1730735105991,4.10097,2438.5,2438.1,4.10152]
[1730735106393,1.69670607,2438.9,2438.6,4.10071]
[1730735106611,6.22308715,2439.0,2438.6,4.10071]
[1730735106612,4.10006,2439.0,2438.6,4.10071]
[1730735106764,4.10031,2438.9,2438.4,8.20189]
[1730735107102,4.10031,2438.9,2438.4,4.10093]
[1730735107283,4.10031,2438.9,2438.2,4.91348]
[1730735107284,4.1002,2438.9,2438.2,0.8122]
[1730735107457,4.1002,2438.9,2437.6,5.22831501]
[1730735107458,0.7765,2438.7,2438.0,0.7643]
[1730735107658,4.1015,2438.2,2437.7,4.91094]
[1730735108001,0.8276,2438.2,2437.9,4.10187]
[1730735108158,1.69670607,2438.5,2437.9,4.10187]
[1730735108159,4.10122,2438.3,2437.9,4.10187]
[1730735108909,4.10122,2438.3,2437.8,4.10203]
[1730735109076,0.492882,2438.3,2437.9,2.0]
[1730735109260,4.10155,2438.1,2437.9,2.0]
[1730735109664,7.10139,2438.2,2437.9,2.0]
[1730735109865,4.10136,2438.3,2437.9,6.10176]
[1730735110088,3.0,2438.4,2438.0,4.10163]
[1730735110707,3.0,2438.4,2437.9,6.10176]
[1730735110869,4.10139,2438.2,2437.9,2.0]
[1730735111694,1.69670607,2438.4,2438.2,4.10134]
[1730735112011,5.79699607,2438.9,2438.4,8.202]
[1730735112316,5.79699607,2438.9,2438.2,4.10124]
[1730735112317,4.10066,2438.7,2438.2,4.10124]
[1730735113671,7.1004,2438.8,2438.3,4.10117]